[Event "Masterklassen 2025"]
[Site "Uppsala, Sweden"]
[Date "2025.06.30"]
[Round "3.5"]
[White "Hammarstrom, Ulf"]
[Black "Karde, Douglas"]
[Result "1/2-1/2"]
[TimeControl "90 min for 40 move + 30 min with an increment of 30 sec starting move 1"]
[WhiteFideId "1710214"]
[BlackFideId "1761498"]
[WhiteElo "2176"]
[BlackElo "2064"]

1. e4 {[%clk 01:27:37]} {[%emt 00:03:21]} Nc6 {[%clk 01:30:56]} {[%emt
00:00:05]} 2. Nf3 {[%clk 01:25:16]} {[%emt 00:02:51]} e6 {[%clk 01:31:14]}
{[%emt 00:00:11]} 3. d4 {[%clk 01:24:11]} {[%emt 00:01:36]} d5 {[%clk
01:31:37]} {[%emt 00:00:06]} 4. exd5 {[%clk 01:19:07]} {[%emt 00:05:35]} exd5
{[%clk 01:31:49]} {[%emt 00:00:19]} 5. Bb5 {[%clk 01:19:30]} {[%emt 00:00:07]}
Bd6 {[%clk 01:28:09]} {[%emt 00:04:10]} 6. c4 {[%clk 01:18:42]} {[%emt
00:01:18]} Bb4+ {[%clk 01:25:51]} {[%emt 00:02:47]} 7. Bd2 {[%clk 01:08:24]}
{[%emt 00:10:47]} Bxd2+ {[%clk 01:23:09]} {[%emt 00:03:13]} 8. Qxd2 {[%clk
01:07:02]} {[%emt 00:01:53]} Nge7 {[%clk 01:22:39]} {[%emt 00:00:59]} 9. O-O
{[%clk 01:02:34]} {[%emt 00:04:58]} O-O {[%clk 01:22:53]} {[%emt 00:00:15]} 10.
Bxc6 {[%clk 00:53:32]} {[%emt 00:09:33]} bxc6 {[%clk 01:18:04]} {[%emt
00:05:18]} 11. c5 {[%clk 00:52:22]} {[%emt 00:01:41]} Ng6 {[%clk 01:14:49]}
{[%emt 00:03:45]} 12. Nc3 {[%clk 00:41:21]} {[%emt 00:11:30]} f6 {[%clk
01:08:59]} {[%emt 00:06:20]} 13. Rfe1 {[%clk 00:34:50]} {[%emt 00:07:01]} Bg4
{[%clk 01:06:12]} {[%emt 00:03:16]} 14. Re3 {[%clk 00:35:09]} {[%emt 00:00:12]}
Bxf3 {[%clk 01:03:27]} {[%emt 00:03:15]} 15. Rxf3 {[%clk 00:35:27]} {[%emt
00:00:12]} f5 {[%clk 01:03:52]} {[%emt 00:00:05]} 16. Ne2 {[%clk 00:33:40]}
{[%emt 00:02:17]} f4 {[%clk 00:57:38]} {[%emt 00:06:44]} 17. Nxf4 {[%clk
00:32:50]} {[%emt 00:01:20]} Qg5 {[%clk 00:57:57]} {[%emt 00:00:11]} 18. g3
{[%clk 00:31:01]} {[%emt 00:02:20]} Nxf4 {[%clk 00:56:10]} {[%emt 00:02:16]} 19.
Rxf4 {[%clk 00:31:23]} {[%emt 00:00:08]} Rxf4 {[%clk 00:56:33]} {[%emt
00:00:07]} 20. Qxf4 {[%clk 00:31:49]} {[%emt 00:00:03]} Qxf4 {[%clk 00:56:57]}
{[%emt 00:00:07]} 21. gxf4 {[%clk 00:32:16]} {[%emt 00:00:03]} Rf8 {[%clk
00:57:20]} {[%emt 00:00:06]} 22. Re1 {[%clk 00:32:01]} {[%emt 00:00:46]} Rxf4
{[%clk 00:57:43]} {[%emt 00:00:08]} 23. Re7 {[%clk 00:30:05]} {[%emt 00:02:25]}
Rxd4 {[%clk 00:57:27]} {[%emt 00:00:46]} 24. Rxc7 {[%clk 00:30:27]} {[%emt
00:00:07]} Rd2 {[%clk 00:57:33]} {[%emt 00:00:24]} 25. Rxc6 {[%clk 00:30:11]}
{[%emt 00:00:47]} Rxb2 {[%clk 00:57:42]} {[%emt 00:00:21]} 26. Rd6 {[%clk
00:27:23]} {[%emt 00:03:19]} Rxa2 {[%clk 00:57:17]} {[%emt 00:00:55]} 27. Rxd5
{[%clk 00:27:47]} {[%emt 00:00:06]} Rc2 {[%clk 00:57:18]} {[%emt 00:00:28]}
1/2-1/2

[Event "Masterklassen 2025"]
[Site "Uppsala, Sweden"]
[Date "2025.06.30"]
[Round "3.6"]
[White "Granath, Jonas"]
[Black "Johnson, Daniel"]
[Result "1/2-1/2"]
[TimeControl "90 min for 40 move + 30 min with an increment of 30 sec starting move 1"]
[WhiteFideId "1761013"]
[BlackFideId "1721283"]
[WhiteElo "2008"]
[BlackElo "2175"]

1. e4 {[%clk 01:30:57]} {[%emt 00:00:02]} c5 {[%clk 01:30:28]} {[%emt
00:00:25]} 2. c3 {[%clk 01:31:21]} {[%emt 00:00:13]} Nf6 {[%clk 01:30:44]}
{[%emt 00:00:14]} 3. e5 {[%clk 01:31:44]} {[%emt 00:00:07]} Nd5 {[%clk
01:31:08]} {[%emt 00:00:06]} 4. d4 {[%clk 01:32:08]} {[%emt 00:00:06]} cxd4
{[%clk 01:31:23]} {[%emt 00:00:16]} 5. cxd4 {[%clk 01:32:30]} {[%emt 00:00:07]}
d6 {[%clk 01:31:25]} {[%emt 00:00:28]} 6. Nf3 {[%clk 01:32:53]} {[%emt
00:00:07]} Nc6 {[%clk 01:31:39]} {[%emt 00:00:16]} 7. Bc4 {[%clk 01:33:06]}
{[%emt 00:00:17]} Nb6 {[%clk 01:31:55]} {[%emt 00:00:14]} 8. Bb5 {[%clk
01:33:27]} {[%emt 00:00:09]} Bd7 {[%clk 01:31:42]} {[%emt 00:00:43]} 9. Nc3
{[%clk 01:33:04]} {[%emt 00:00:53]} dxe5 {[%clk 01:31:00]} {[%emt 00:01:11]} 10.
d5 {[%clk 01:32:18]} {[%emt 00:01:17]} Nb4 {[%clk 01:20:37]} {[%emt 00:10:53]}
11. Nxe5 {[%clk 01:25:10]} {[%emt 00:07:38]} Bxb5 {[%clk 01:01:11]} {[%emt
00:19:55]} 12. Nxb5 {[%clk 01:23:13]} {[%emt 00:02:28]} Rc8 {[%clk 01:01:19]}
{[%emt 00:00:21]} 13. O-O {[%clk 01:16:39]} {[%emt 00:07:04]} Qxd5 {[%clk
00:56:02]} {[%emt 00:05:48]} 14. Nxa7 {[%clk 01:10:22]} {[%emt 00:06:45]} Ra8
{[%clk 00:43:35]} {[%emt 00:12:58]} 15. Be3 {[%clk 01:07:35]} {[%emt 00:03:17]}
Rxa7 {[%clk 00:00:50]} {[%emt 00:43:15]} 16. Bxb6 {[%clk 01:07:15]} {[%emt
00:00:50]} Ra8 {[%clk 00:00:31]} {[%emt 00:00:49]} 17. Qe2 {[%clk 00:54:57]}
{[%emt 00:12:47]} f6 {[%clk 00:00:36]} {[%emt 00:00:26]} 18. Nc4 {[%clk
00:53:15]} {[%emt 00:02:12]} Qd3 {[%clk 00:00:34]} {[%emt 00:00:32]} 19. Qh5+
{[%clk 00:52:28]} {[%emt 00:01:17]} g6 {[%clk 00:00:32]} {[%emt 00:00:32]} 20.
Qb5+ {[%clk 00:52:28]} {[%emt 00:00:31]} Nc6 {[%clk 00:01:01]} {[%emt
00:00:01]} 21. Rad1 {[%clk 00:44:07]} {[%emt 00:08:51]} Qf5 {[%clk 00:00:31]}
{[%emt 00:00:59]} 22. Rd5 {[%clk 00:39:10]} {[%emt 00:05:27]} Qe6 {[%clk
00:00:50]} {[%emt 00:00:11]} 23. Rdd1 {[%clk 00:25:48]} {[%emt 00:13:52]} Qf5
{[%clk 00:00:38]} {[%emt 00:00:43]} 24. Rfe1 {[%clk 00:13:52]} {[%emt
00:12:26]} Qxb5 {[%clk 00:00:32]} {[%emt 00:00:36]} 25. Nd6+ {[%clk 00:14:14]}
{[%emt 00:00:07]} Kd7 {[%clk 00:01:01]} {[%emt 00:00:01]} 26. Nxb5+ {[%clk
00:14:37]} {[%emt 00:00:07]} Kc8 {[%clk 00:01:23]} {[%emt 00:00:08]} 27. Nd6+
{[%clk 00:11:06]} {[%emt 00:04:02]} Kb8 {[%clk 00:01:52]} {[%emt 00:00:01]} 28.
b4 {[%clk 00:02:41]} {[%emt 00:08:55]} 1/2-1/2

[Event "Masterklassen 2025"]
[Site "Uppsala, Sweden"]
[Date "2025.06.30"]
[Round "3.7"]
[White "Muntean, Victor"]
[Black "Nygren, David"]
[Result "1/2-1/2"]
[TimeControl "90 min for 40 move + 30 min with an increment of 30 sec starting move 1"]
[WhiteFideId "1054414"]
[BlackFideId "1704761"]
[WhiteElo "2140"]
[BlackElo "2094"]

1. e4 {[%clk 01:30:58]} {[%emt 00:00:02]} e6 {[%clk 01:30:46]} {[%emt
00:00:15]} 2. Qe2 {[%clk 01:31:22]} {[%emt 00:00:05]} e5 {[%clk 01:28:13]}
{[%emt 00:03:04]} 3. f4 {[%clk 01:30:55]} {[%emt 00:00:56]} exf4 {[%clk
01:24:50]} {[%emt 00:03:54]} 4. Nf3 {[%clk 01:30:18]} {[%emt 00:01:07]} d6
{[%clk 01:20:23]} {[%emt 00:04:57]} 5. d4 {[%clk 01:30:03]} {[%emt 00:00:45]}
Bg4 {[%clk 01:18:15]} {[%emt 00:02:37]} 6. Qb5+ {[%clk 01:27:35]} {[%emt
00:02:59]} Nd7 {[%clk 01:12:47]} {[%emt 00:05:58]} 7. Qxb7 {[%clk 01:21:36]}
{[%emt 00:06:29]} Bxf3 {[%clk 01:09:29]} {[%emt 00:03:48]} 8. gxf3 {[%clk
01:21:51]} {[%emt 00:00:15]} Rb8 {[%clk 01:04:26]} {[%emt 00:05:33]} 9. Qxa7
{[%clk 01:21:58]} {[%emt 00:00:23]} Qh4+ {[%clk 01:03:31]} {[%emt 00:01:25]} 10.
Kd1 {[%clk 01:22:03]} {[%emt 00:00:26]} Qf2 {[%clk 00:57:22]} {[%emt 00:06:37]}
11. Be2 {[%clk 01:22:21]} {[%emt 00:00:13]} Be7 {[%clk 00:53:54]} {[%emt
00:03:57]} 12. Nc3 {[%clk 01:18:25]} {[%emt 00:04:27]} Ngf6 {[%clk 00:51:19]}
{[%emt 00:03:04]} 13. Rf1 {[%clk 01:15:09]} {[%emt 00:03:47]} Qxh2 {[%clk
00:47:36]} {[%emt 00:04:12]} 14. e5 {[%clk 01:15:02]} {[%emt 00:00:37]} dxe5
{[%clk 00:46:42]} {[%emt 00:01:24]} 15. dxe5 {[%clk 01:15:26]} {[%emt
00:00:06]} Bc5 {[%clk 00:45:05]} {[%emt 00:02:07]} 16. Qxc7 {[%clk 01:11:20]}
{[%emt 00:04:37]} Nh5 {[%clk 00:27:58]} {[%emt 00:17:36]} 17. Bb5 {[%clk
01:09:56]} {[%emt 00:01:54]} O-O {[%clk 00:27:00]} {[%emt 00:01:28]} 18. Bxd7
{[%clk 01:08:27]} {[%emt 00:01:59]} Qg2 {[%clk 00:27:08]} {[%emt 00:00:20]} 19.
Re1 {[%clk 01:05:56]} {[%emt 00:03:02]} Qxf3+ {[%clk 00:23:44]} {[%emt
00:03:55]} 20. Ne2 {[%clk 01:05:48]} {[%emt 00:00:38]} Qd5+ {[%clk 00:20:15]}
{[%emt 00:03:59]} 21. Bd2 {[%clk 01:06:03]} {[%emt 00:00:15]} f3 {[%clk
00:12:54]} {[%emt 00:07:51]} 22. Nc3 {[%clk 01:05:25]} {[%emt 00:01:08]} Qd4
{[%clk 00:11:11]} {[%emt 00:02:13]} 23. e6 {[%clk 00:58:27]} {[%emt 00:07:28]}
fxe6 {[%clk 00:09:52]} {[%emt 00:01:49]} 24. Bxe6+ {[%clk 00:52:17]} {[%emt
00:06:40]} Kh8 {[%clk 00:10:17]} {[%emt 00:00:05]} 25. Bf5 {[%clk 00:49:59]}
{[%emt 00:02:48]} Bd6 {[%clk 00:06:55]} {[%emt 00:03:51]} 26. Qd7 {[%clk
00:46:37]} {[%emt 00:03:53]} Rbd8 {[%clk 00:06:11]} {[%emt 00:01:14]} 27. Nb5
{[%clk 00:46:06]} {[%emt 00:01:01]} Qb6 {[%clk 00:03:41]} {[%emt 00:02:59]} 28.
Qa7 {[%clk 00:41:22]} {[%emt 00:05:14]} Qxb5 {[%clk 00:03:46]} {[%emt
00:00:25]} 29. Bd3 {[%clk 00:41:46]} {[%emt 00:00:07]} Qxb2 {[%clk 00:03:38]}
{[%emt 00:00:38]} 30. Rc1 {[%clk 00:42:05]} {[%emt 00:00:11]} Ng3 {[%clk
00:02:37]} {[%emt 00:01:31]} 31. Qf2 {[%clk 00:38:52]} {[%emt 00:03:42]} Bb4
{[%clk 00:01:53]} {[%emt 00:01:14]} 32. Bxb4 {[%clk 00:31:13]} {[%emt
00:08:10]} Rxd3+ {[%clk 00:02:15]} {[%emt 00:00:08]} 33. cxd3 {[%clk 00:31:36]}
{[%emt 00:00:07]} Qxf2 {[%clk 00:02:19]} {[%emt 00:00:25]} 34. Bxf8 {[%clk
00:32:02]} {[%emt 00:00:05]} Qxa2 {[%clk 00:01:31]} {[%emt 00:01:18]} 35. Rc8
{[%clk 00:32:05]} {[%emt 00:00:26]} Qa4+ {[%clk 00:00:43]} {[%emt 00:01:18]} 36.
Kc1 {[%clk 00:30:42]} {[%emt 00:01:54]} h5 {[%clk 00:00:34]} {[%emt 00:00:38]}
37. Bd6+ {[%clk 00:29:04]} {[%emt 00:02:08]} Kh7 {[%clk 00:01:01]} {[%emt
00:00:04]} 38. Bxg3 {[%clk 00:28:54]} {[%emt 00:00:40]} Qg4 {[%clk 00:01:25]}
{[%emt 00:00:06]} 39. Rf8 {[%clk 00:28:50]} {[%emt 00:00:33]} Qxg3 {[%clk
00:01:37]} {[%emt 00:00:19]} 40. Rf1 {[%clk 00:29:10]} {[%emt 00:00:10]} f2
{[%clk 00:01:01]} {[%emt 00:01:06]} 41. Kc2 {[%clk 00:27:53]} {[%emt 00:01:47]}
Qc7+ {[%clk 00:00:46]} {[%emt 00:00:44]} 42. Kd2 {[%clk 00:27:57]} {[%emt
00:00:26]} Qa5+ {[%clk 00:30:29]} {[%emt 00:00:47]} 43. Ke2 {[%clk 00:58:20]}
{[%emt 00:00:08]} Qa2+ {[%clk 00:29:43]} {[%emt 00:01:15]} 44. Ke3 {[%clk
00:57:20]} {[%emt 00:01:30]} Qa7+ {[%clk 00:29:38]} {[%emt 00:00:35]} 45. Kd2
{[%clk 00:57:34]} {[%emt 00:00:16]} Qa5+ {[%clk 00:28:38]} {[%emt 00:01:31]} 46.
Ke2 {[%clk 00:57:44]} {[%emt 00:00:19]} Qe5+ {[%clk 00:28:33]} {[%emt
00:00:35]} 47. Kxf2 {[%clk 00:55:41]} {[%emt 00:02:33]} h4 {[%clk 00:28:56]}
{[%emt 00:00:08]} 48. Rf3 {[%clk 00:55:01]} {[%emt 00:01:09]} Qh2+ {[%clk
00:28:39]} {[%emt 00:00:47]} 49. Ke3 {[%clk 00:55:15]} {[%emt 00:00:16]} h3
{[%clk 00:28:01]} {[%emt 00:01:08]} 50. d4 {[%clk 00:54:56]} {[%emt 00:00:50]}
Qg2 {[%clk 00:26:46]} {[%emt 00:01:42]} 51. R1f2 {[%clk 00:54:55]} {[%emt
00:00:33]} Qg5+ {[%clk 00:26:56]} {[%emt 00:00:20]} 52. Kd3 {[%clk 00:54:39]}
{[%emt 00:00:46]} Qg6+ {[%clk 00:26:36]} {[%emt 00:00:49]} 53. Ke2 {[%clk
00:52:14]} {[%emt 00:02:57]} Qe4+ {[%clk 00:23:26]} {[%emt 00:03:36]} 54. Kf1
{[%clk 00:51:09]} {[%emt 00:01:38]} Qb1+ {[%clk 00:21:16]} {[%emt 00:02:40]} 55.
Ke2 {[%clk 00:51:31]} {[%emt 00:00:08]} Qb5+ {[%clk 00:20:44]} {[%emt
00:01:02]} 56. Ke1 {[%clk 00:49:35]} {[%emt 00:02:26]} Qh5 {[%clk 00:20:03]}
{[%emt 00:01:11]} 57. Rf5 {[%clk 00:46:10]} {[%emt 00:03:55]} Qh4 {[%clk
00:17:27]} {[%emt 00:03:05]} 58. R5f4 {[%clk 00:46:05]} {[%emt 00:00:36]} Qg3
{[%clk 00:17:16]} {[%emt 00:00:40]} 59. R4f3 {[%clk 00:45:15]} {[%emt
00:01:22]} Qg4 {[%clk 00:17:00]} {[%emt 00:00:42]} 60. Ke2 {[%clk 00:42:14]}
{[%emt 00:03:35]} g5 {[%clk 00:14:41]} {[%emt 00:02:48]} 61. d5 {[%clk
00:38:49]} {[%emt 00:03:55]} Qc4+ {[%clk 00:13:02]} {[%emt 00:02:09]} 62. Rd3
{[%clk 00:39:02]} {[%emt 00:00:18]} Qc2+ {[%clk 00:10:31]} {[%emt 00:03:01]} 63.
Ke3 {[%clk 00:39:22]} {[%emt 00:00:10]} Qc5+ {[%clk 00:10:24]} {[%emt
00:00:36]} 64. Ke2 {[%clk 00:39:13]} {[%emt 00:00:39]} Qc2+ {[%clk 00:09:04]}
{[%emt 00:01:51]} 65. Ke3 {[%clk 00:39:37]} {[%emt 00:00:06]} Qc1+ {[%clk
00:09:25]} {[%emt 00:00:08]} 66. Ke2 {[%clk 00:39:02]} {[%emt 00:01:06]} Qb2+
{[%clk 00:09:00]} {[%emt 00:00:54]} 67. Ke3 {[%clk 00:38:24]} {[%emt 00:01:08]}
Qe5+ {[%clk 00:08:50]} {[%emt 00:00:40]} 68. Kd2 {[%clk 00:38:18]} {[%emt
00:00:36]} g4 {[%clk 00:08:19]} {[%emt 00:01:02]} 69. d6 {[%clk 00:36:04]}
{[%emt 00:02:43]} h2 {[%clk 00:07:23]} {[%emt 00:01:26]} 70. Rf1 {[%clk
00:36:21]} {[%emt 00:00:14]} Qg5+ {[%clk 00:06:29]} {[%emt 00:01:23]} 71. Kc2
{[%clk 00:33:31]} {[%emt 00:03:21]} Qc5+ {[%clk 00:04:42]} {[%emt 00:02:16]} 72.
Kd2 {[%clk 00:33:51]} {[%emt 00:00:10]} Qa5+ {[%clk 00:03:49]} {[%emt
00:01:24]} 73. Ke2 {[%clk 00:33:14]} {[%emt 00:01:06]} Qa2+ {[%clk 00:03:57]}
{[%emt 00:00:22]} 74. Ke3 {[%clk 00:33:02]} {[%emt 00:00:42]} Qe6+ {[%clk
00:04:20]} {[%emt 00:00:07]} 75. Kd2 {[%clk 00:33:13]} {[%emt 00:00:20]} Qh6+
{[%clk 00:03:44]} {[%emt 00:01:05]} 76. Kc2 {[%clk 00:31:06]} {[%emt 00:02:37]}
h1=Q {[%clk 00:02:25]} {[%emt 00:01:49]} 77. Rxh1 {[%clk 00:31:29]} {[%emt
00:00:07]} Qxh1 {[%clk 00:02:53]} {[%emt 00:00:02]} 78. d7 {[%clk 00:31:52]}
{[%emt 00:00:08]} Qh2+ {[%clk 00:02:32]} {[%emt 00:00:50]} 79. Kd1 {[%clk
00:32:03]} {[%emt 00:00:19]} Qg1+ {[%clk 00:02:13]} {[%emt 00:00:49]} 80. Ke2
{[%clk 00:31:05]} {[%emt 00:01:29]} Qg2+ {[%clk 00:01:59]} {[%emt 00:00:44]} 81.
Kd1 {[%clk 00:31:28]} {[%emt 00:00:07]} Qf1+ {[%clk 00:01:59]} {[%emt
00:00:30]} 82. Kd2 {[%clk 00:31:52]} {[%emt 00:00:06]} Qf2+ {[%clk 00:02:17]}
{[%emt 00:00:11]} 83. Kd1 {[%clk 00:32:13]} {[%emt 00:00:10]} Qf1+ {[%clk
00:02:28]} {[%emt 00:00:19]} 84. Kd2 {[%clk 00:32:37]} {[%emt 00:00:05]} Qf4+
{[%clk 00:02:30]} {[%emt 00:00:28]} 85. Kd1 {[%clk 00:32:47]} {[%emt 00:00:21]}
Qa4+ {[%clk 00:02:36]} {[%emt 00:00:24]} 86. Ke2 {[%clk 00:33:01]} {[%emt
00:00:16]} Qe4+ {[%clk 00:02:29]} {[%emt 00:00:36]} 87. Kd2 {[%clk 00:33:22]}
{[%emt 00:00:09]} Qf4+ {[%clk 00:01:15]} {[%emt 00:01:45]} 88. Kd1 {[%clk
00:33:43]} {[%emt 00:00:09]} Qa4+ {[%clk 00:01:09]} {[%emt 00:00:36]} 89. Ke2
{[%clk 00:34:06]} {[%emt 00:00:07]} Qc2+ {[%clk 00:00:56]} {[%emt 00:00:43]} 90.
Ke3 {[%clk 00:34:18]} {[%emt 00:00:18]} Qc5+ {[%clk 00:00:59]} {[%emt
00:00:25]} 91. Rd4 {[%clk 00:32:03]} {[%emt 00:02:47]} Qg5+ {[%clk 00:01:09]}
{[%emt 00:00:20]} 92. Ke4 {[%clk 00:32:02]} {[%emt 00:00:32]} Qd8 {[%clk
00:01:04]} {[%emt 00:00:33]} 93. Kf4 {[%clk 00:32:18]} {[%emt 00:00:14]} g3
{[%clk 00:01:08]} {[%emt 00:00:26]} 94. Kxg3 {[%clk 00:32:29]} {[%emt
00:00:19]} Kg6 {[%clk 00:01:19]} {[%emt 00:00:17]} 95. Kf3 {[%clk 00:32:44]}
{[%emt 00:00:17]} Kf5 {[%clk 00:01:41]} {[%emt 00:00:08]} 96. Ke3 {[%clk
00:32:44]} {[%emt 00:00:30]} Ke6 {[%clk 00:01:21]} {[%emt 00:00:49]} 97. Re4+
{[%clk 00:33:04]} {[%emt 00:00:11]} Kd5 {[%clk 00:01:40]} {[%emt 00:00:11]} 98.
Rd4+ {[%clk 00:33:23]} {[%emt 00:00:11]} Kc5 {[%clk 00:01:47]} {[%emt
00:00:23]} 99. Kd3 {[%clk 00:33:48]} {[%emt 00:00:06]} Kb5 {[%clk 00:01:44]}
{[%emt 00:00:32]} 100. Rd5+ {[%clk 00:33:48]} {[%emt 00:00:31]} Kc6 {[%clk
00:02:03]} {[%emt 00:00:10]} 101. Rd4 {[%clk 00:34:12]} {[%emt 00:00:06]} Qxd7
{[%clk 00:02:10]} {[%emt 00:00:22]} 102. Rxd7 {[%clk 00:34:37]} {[%emt
00:00:06]} Kxd7 {[%clk 00:02:36]} {[%emt 00:00:05]} 1/2-1/2

[Event "Masterklassen 2025"]
[Site "Uppsala, Sweden"]
[Date "2025.06.30"]
[Round "3.8"]
[White "Wakeham, Daniel"]
[Black "Tornberg, Carlos"]
[Result "1-0"]
[TimeControl "90 min for 40 move + 30 min with an increment of 30 sec starting move 1"]
[WhiteFideId "1705482"]
[BlackFideId "1733478"]
[WhiteElo "2045"]
[BlackElo "2233"]

1. d4 {[%clk 01:30:56]} {[%emt 00:00:04]} Nf6 {[%clk 01:30:57]} {[%emt
00:00:03]} 2. Nf3 {[%clk 01:31:19]} {[%emt 00:00:06]} e6 {[%clk 01:30:02]}
{[%emt 00:01:26]} 3. e3 {[%clk 01:31:31]} {[%emt 00:00:18]} c5 {[%clk
01:29:09]} {[%emt 00:01:23]} 4. Bd3 {[%clk 01:31:38]} {[%emt 00:00:23]} b6
{[%clk 01:27:22]} {[%emt 00:02:18]} 5. e4 {[%clk 01:28:12]} {[%emt 00:03:55]}
cxd4 {[%clk 01:21:20]} {[%emt 00:06:33]} 6. e5 {[%clk 01:26:13]} {[%emt
00:02:28]} Nd5 {[%clk 01:17:24]} {[%emt 00:04:26]} 7. Nxd4 {[%clk 01:20:12]}
{[%emt 00:06:31]} f5 {[%clk 01:06:15]} {[%emt 00:11:38]} 8. Nxf5 {[%clk
01:14:31]} {[%emt 00:06:12]} exf5 {[%clk 01:00:42]} {[%emt 00:06:03]} 9. Qf3
{[%clk 01:09:02]} {[%emt 00:05:58]} Nc7 {[%clk 00:56:15]} {[%emt 00:04:58]} 10.
Bxf5 {[%clk 01:07:48]} {[%emt 00:01:44]} g6 {[%clk 00:46:15]} {[%emt 00:10:29]}
11. e6 {[%clk 00:30:53]} {[%emt 00:37:25]} Qf6 {[%clk 00:39:16]} {[%emt
00:07:29]} 12. O-O {[%clk 00:19:07]} {[%emt 00:12:15]} Qxf5 {[%clk 00:36:11]}
{[%emt 00:03:35]} 13. Qc3 {[%clk 00:19:19]} {[%emt 00:00:18]} Rg8 {[%clk
00:31:16]} {[%emt 00:05:26]} 14. Qxc7 {[%clk 00:19:19]} {[%emt 00:00:30]} Nc6
{[%clk 00:29:51]} {[%emt 00:01:55]} 15. Re1 {[%clk 00:17:07]} {[%emt 00:02:42]}
Be7 {[%clk 00:29:43]} {[%emt 00:00:37]} 16. Nc3 {[%clk 00:14:48]} {[%emt
00:02:49]} Nd4 {[%clk 00:20:04]} {[%emt 00:10:10]} 17. exd7+ {[%clk 00:07:23]}
{[%emt 00:07:55]} Bxd7 {[%clk 00:17:18]} {[%emt 00:03:16]} 18. Ne4 {[%clk
00:04:57]} {[%emt 00:02:56]} Kf7 {[%clk 00:14:02]} {[%emt 00:03:47]} 19. Bg5
{[%clk 00:03:50]} {[%emt 00:01:36]} Nb5 {[%clk 00:10:01]} {[%emt 00:04:31]} 20.
Qc4+ {[%clk 00:03:56]} {[%emt 00:00:24]} Be6 {[%clk 00:09:55]} {[%emt
00:00:36]} 21. Qe2 {[%clk 00:02:22]} {[%emt 00:02:04]} Bxg5 {[%clk 00:07:42]}
{[%emt 00:02:43]} 22. Nxg5+ {[%clk 00:02:16]} {[%emt 00:00:36]} Qxg5 {[%clk
00:06:43]} {[%emt 00:01:29]} 23. Qxe6+ {[%clk 00:02:45]} Kg7 {[%clk 00:02:15]}
{[%emt 00:04:58]} 24. Re5 {[%clk 00:03:04]} {[%emt 00:00:11]} Qf6 {[%clk
00:00:50]} {[%emt 00:01:54]} 25. Qxf6+ {[%clk 00:01:56]} {[%emt 00:01:39]} Kxf6
{[%clk 00:01:19]} {[%emt 00:00:01]} 26. Rxb5 {[%clk 00:02:25]} {[%emt
00:00:01]} Rad8 {[%clk 00:01:16]} {[%emt 00:00:33]} 27. Rb3 {[%clk 00:02:08]}
{[%emt 00:00:47]} Rd2 {[%clk 00:01:11]} {[%emt 00:00:35]} 28. Rc1 {[%clk
00:01:59]} {[%emt 00:00:39]} Re8 {[%clk 00:01:03]} {[%emt 00:00:38]} 29. Rf3+
{[%clk 00:02:23]} {[%emt 00:00:06]} Kg7 {[%clk 00:01:27]} {[%emt 00:00:06]} 30.
Re3 {[%clk 00:02:39]} {[%emt 00:00:13]} Rc8 {[%clk 00:00:47]} {[%emt 00:01:11]}
31. Rc3 {[%clk 00:01:41]} {[%emt 00:01:28]} Re8 {[%clk 00:01:16]} 32. Kf1
{[%clk 00:00:46]} {[%emt 00:01:25]} Ree2 {[%clk 00:01:30]} {[%emt 00:00:15]} 33.
Rf3 {[%clk 00:01:15]} {[%emt 00:00:02]} a5 {[%clk 00:00:51]} {[%emt 00:01:09]}
34. a4 {[%clk 00:01:27]} {[%emt 00:00:18]} g5 {[%clk 00:00:43]} {[%emt
00:00:38]} 35. g3 {[%clk 00:01:31]} {[%emt 00:00:26]} g4 {[%clk 00:00:58]}
{[%emt 00:00:14]} 36. Rf4 {[%clk 00:01:39]} {[%emt 00:00:23]} h5 {[%clk
00:01:18]} {[%emt 00:00:10]} 37. Kg2 {[%clk 00:01:32]} {[%emt 00:00:37]} Kg6
{[%clk 00:01:26]} {[%emt 00:00:22]} 38. h3 {[%clk 00:01:28]} Kg5 {[%emt
00:01:23]} 39. hxg4 {[%clk 00:01:26]} {[%emt 00:00:29]} hxg4 {[%clk 00:01:38]}
{[%emt 00:00:01]} 40. b3 {[%clk 00:01:13]} {[%emt 00:00:44]} Rxc2 {[%clk
00:01:36]} {[%emt 00:00:32]} 41. Rxc2 {[%clk 00:27:34]} {[%emt 00:04:09]} Rxc2
{[%clk 00:32:04]} {[%emt 00:00:01]} 42. b4 {[%clk 00:27:45]} {[%emt 00:00:19]}
axb4 {[%clk 00:26:31]} {[%emt 00:06:04]} 43. Rxb4 {[%clk 00:28:05]} {[%emt
00:00:10]} Rc6 {[%clk 00:26:33]} {[%emt 00:00:28]} 44. Kf1 {[%clk 00:27:00]}
{[%emt 00:01:35]} Re6 {[%clk 00:26:20]} {[%emt 00:00:43]} 45. Kg2 {[%emt
00:01:35]} Rf6 {[%clk 00:25:56]} {[%emt 00:00:50]} 46. Rb3 {[%clk 00:25:50]}
{[%emt 00:00:38]} Rc6 {[%clk 00:23:30]} {[%emt 00:02:56]} 47. f4+ {[%clk
00:25:43]} {[%emt 00:00:37]} gxf3+ {[%clk 00:20:00]} {[%emt 00:04:00]} 48. Kxf3
{[%clk 00:26:07]} {[%emt 00:00:07]} Rf6+ {[%clk 00:18:14]} {[%emt 00:02:15]} 49.
Ke4 {[%clk 00:26:02]} {[%emt 00:00:35]} Kg4 {[%clk 00:17:36]} {[%emt 00:01:09]}
50. Kd5 {[%clk 00:23:12]} {[%emt 00:03:20]} Rg6 {[%clk 00:14:45]} {[%emt
00:03:20]} 51. Kc4 {[%clk 00:22:53]} {[%emt 00:00:49]} Kf5 {[%clk 00:14:41]}
{[%emt 00:00:34]} 52. Kb5 {[%clk 00:22:28]} {[%emt 00:00:55]} Ke5 {[%clk
00:14:42]} {[%emt 00:00:29]} 53. Ka6 {[%clk 00:22:31]} {[%emt 00:00:27]} Kd5
{[%clk 00:14:56]} {[%emt 00:00:17]} 54. Rb5+ {[%clk 00:20:18]} {[%emt
00:02:43]} Kc4 {[%clk 00:15:15]} {[%emt 00:00:11]} 55. Rxb6 {[%clk 00:20:35]}
{[%emt 00:00:13]} Rxg3 {[%clk 00:15:43]} {[%emt 00:00:02]} 56. a5 {[%clk
00:19:14]} {[%emt 00:01:50]} Rg7 {[%clk 00:13:04]} {[%emt 00:03:09]} 57. Rc6+
{[%clk 00:18:24]} {[%emt 00:01:20]} Kb4 {[%emt 00:00:31]} 58. Kb6 {[%clk
00:18:30]} {[%emt 00:00:21]} Rg5 {[%clk 00:11:39]} {[%emt 00:01:57]} 59. a6
{[%clk 00:17:00]} {[%emt 00:02:01]} Rb5+ {[%clk 00:11:15]} {[%emt 00:00:54]} 60.
Kc7 {[%clk 00:16:27]} {[%emt 00:01:02]} 1-0